{"text_format":"1","workbook":"xlsx","n_sheets":4,"sheets":["NOTICE","CALCUL","TABLEAU DE REPARTITION","Modèle"],"not_rendered":{"charts":0,"images":3,"macros":1,"external_links":0,"defined_names":4,"comments":0,"pivot_tables":0},"unopened":[],"bounds":{"document_bytes":16777216,"sheet_cells":100000,"rows_first":2000,"rows_last":500,"rows_between":2000,"halvings":0,"cell_chars":16384,"cell_head_chars":4096},"cells_cut":0,"cells_raw":0,"read":"whole","date_system":"1900"}

{"sheet":"NOTICE","index":0,"n_rows":54,"n_cols":3,"rows_kept":54,"cut":false,"hidden":false,"merged":[[22,2,22,17],[46,0,46,1],[46,2,46,17],[52,0,52,17],[53,0,53,17],[48,0,48,17],[50,0,50,17],[49,0,49,1],[49,2,49,17],[51,0,51,17],[43,2,43,17],[41,0,43,1],[45,0,45,17],[44,0,44,17],[47,0,47,17],[38,0,38,17],[39,0,39,17],[41,2,41,17],[36,0,36,17],[42,2,42,17],[40,0,40,17],[0,0,5,17],[7,0,8,17],[6,0,6,17],[17,0,17,17],[15,0,15,17],[16,0,16,17],[14,0,14,1],[14,2,14,17],[9,0,9,17],[10,0,10,17],[11,0,11,17],[12,0,12,17],[13,0,13,17],[18,0,18,1],[32,0,32,17],[34,0,34,17],[33,0,33,1],[33,2,33,17],[20,0,20,17],[21,0,21,17],[18,2,18,17],[22,0,22,1],[19,0,19,17],[27,0,27,17],[28,2,28,17],[29,2,29,17],[30,2,30,17],[31,2,31,17],[35,0,35,17],[37,0,37,17],[23,0,23,17],[24,0,24,17],[25,0,25,17],[26,0,26,1],[26,2,26,17],[28,0,31,1]]}
["NOTICE\nCalculez et payez votre solde Taxe d'apprentissage 13%"]
[]
[]
[]
[]
[]
[]
["Ce fichier est une aide afin  de vous acquitter de la fraction 13% de la taxe d'apprentissage à régler avant le 01 juin 2021 et de vous conformer à vos obligations légales. Nous vous rappelons que vous devez régler cette fraction de la taxe d'apprentissage directement aux établissements habilités par liste préfectorale ou par arrêté."]
[]
[]
["ETAPE 1 : CALCUL"]
[]
["1 - Positionnez vous dans l'onglet CALCUL et remplissez tous les champs concernant votre entreprise"]
[]
["A noter",null,"Ces champs doivent etre correctement remplis, ils se reportent sur les courriers que vous enverrez aux écoles bénéficiaires"]
[]
["2 - Renseignez votre masse salariale 2020 et votre effectif et votre masse salariale (case A)"]
[]
["A noter",null,"La masse salariale à prendre en compte est la masse salariale hors des départements d'Alsace et Moselle (départements 57, 67 et 68 ).\nLes entreprises du bâtiment et des travaux publics doivent majorer leur masse salariale de 11,5% au titre des congés payés"]
[]
["3 - Renseignez la case I31 si vous avez employé un apprenti en 2020"]
[]
["A noter",null,"Les entreprises ayant employé un apprenti et dont la masse salariale n'éxcède pas 110 838 € sont exonérés du paiement du solde de la taxe d'apprentissage"]
[]
["3 - Renseignez la case H37 (case D) si vous avez des déductions"]
[]
["Dons en nature",null,"Les dons en nature pris en compte sont ceux effectués entre le 01 juin 2020 et le 31 mai 2021. Reportez dans cette case le montant apparaissant sur le recu fourni par l'école ou le CFA au titre de ces dons en nature."]
[]
["Créance",null,"Ne concerne que les entreprises de 250 salariés et plus dont le quota alternant est supérieur à 5%.\nCalcul de la créance : Reportez vous à votre bordereau CSA pour connaitre votre quota alternant"]
[null,null,"(% alternant – 5 %) (1) x effectif moyen x 400 €"]
[null,null,"(1)dans la limite de 2 %"]
[null,null,"Reportez dans la case D le montant de la créance calculée. "]
[]
["A noter",null,"Le surplus éventuel des déductions ne peut donner lieu ni à report ni à restitution."]
[]
["4 - Vous obtenez en case F le montant à payer"]
[]
["ETAPE 2 : REPARTITION"]
[]
["1 - Positionnez vous dans l'onglet TABLEAU DE REPARTITION et renseignez le tableau avec le ou les établissements choisis"]
[]
["A noter",null,"L'UNEA est habilitée sur la liste préfectorale de la préfecture d'Ile de France: TA2020-COMPLEMENTAIRE-ADD1 télécharger XLSX - 316,58 ko"]
[null,null,"https://www.prefectures-regions.gouv.fr/ile-de-france/Region-et-institutions/Demarches-administratives/Taxe-d-apprentissage/Taxe-d-apprentissage/Liste-2021/#titre"]
[null,null,"Nous vous rappelons que le versement aux écoles habilitées par arrêté est plafonné à 30% de la taxe due. (Ne concerne pas l'UNEA)"]
[]
["2 - Effectuez le contrôle de cohérence en appuyant sur le bouton prévu à cet effet"]
["A noter",null,"Vous ne devez pas modifier la structure du tableau ou insérer des lignes pour que le contôle de cohérence fonctionne."]
[]
["3 - Appuyez sur le bouton Editer les bordereaux pour effectuer les courriers pour les écoles"]
["A noter",null,"Vous pouvez modifiez l'onglet modèle à votre convenance avant d'effectuer l'édition des courriers.\nSi vous souhaitez modifier le tableau après édition des courriers réinitialisez afin de supprimer les onglets effectués et recommencez."]
[]
["4 - Envoyez les courriers et effectuez votre règlement aux écoles concernées."]
[]
["5 - Assurez vous de récupérer un recu en cas de contrôle de l'administration fiscale."]

{"sheet":"CALCUL","index":1,"n_rows":41,"n_cols":9,"rows_kept":41,"cut":false,"hidden":false,"merged":[[37,0,37,5],[37,7,37,8],[40,0,40,5],[40,7,40,8],[34,0,34,5],[34,7,34,8],[35,0,35,5],[35,7,35,8],[36,0,36,5],[36,7,36,8],[32,0,32,8],[19,0,19,2],[19,3,19,8],[21,1,21,2],[21,4,21,8],[23,0,23,8],[25,0,26,0],[25,1,26,1],[25,2,26,3],[25,4,26,6],[25,7,26,7],[25,8,26,8],[27,0,27,8],[28,0,28,8],[29,0,29,8],[30,0,30,7],[10,1,10,8],[12,1,12,8],[14,3,14,8],[16,3,16,4],[16,5,16,6],[16,7,17,8],[8,1,8,2],[8,3,8,8],[0,0,2,8],[3,0,3,8],[4,0,4,8],[5,0,5,8],[6,0,6,8]]}
["FORMULAIRE DE VERSEMENT DES 13% DU SOLDE DE LA TAXE D'APPRENTISSAGE 2021\nDécret N°2019-1491 du 27 décembre 2019"]
[]
[]
[]
["A REGLER AVANT LE 1er juin 2021"]
[]
["VOTRE ENTREPRISE "]
[]
["SIRET SIEGE"]
[]
["RAISON SOCIALE"," "]
[]
["ADRESSE"]
[]
["CODE POSTAL",null,"VILLE "]
[]
["CODE NACE",null,"IDCC N°"]
[]
[]
["Personne à contacter"]
[]
["TEL",null,null,"EMAIL @"]
[]
["MASSE SALARIALE ET EFFECTIFS 2020"]
[]
["EFFECTIF\nMOYEN 2020",null,null,null,"MASSE SALARIALE 2020",null,null,"A"]
[]
[]
["La masse salariale à prendre en compte est celle des établissements situés en dehors de l'Alsace Moselle. \nIl n'y a pas de 13% dans ces départements."]
[]
["Avez-vous employé un apprenti en 2020?",null,null,null,null,null,null,null,"NON"]
[]
["CALCUL DU SOLDE DE LA TAXE D'APPRENTISSAGE"]
[]
["TAXE BRUTE  A * 0,68%",null,null,null,null,null,"B",{"$f":"IF(AND(I31=\"OUI\",I26<109528),\"EXONERE\",I26*0.0068)","v":0},{"$f":"IF(AND(G31=\"OUI\",G26<108528),\"EXONERE\",G26*0.068)","v":0}]
["MONTANT DES 13%  B * 13%",null,null,null,null,null,"C",{"$f":"IF(AND(I31=\"OUI\",I26<109528),\"EXONERE\",H35*13%)","v":0}]
["DEDUCTIONS (voir notice)",null,null,null,null,null,"D"]
["MONTANT DES 13% A REGLER (C-D)",null,null,null,null,null,"E",{"$f":"IF(AND(I31=\"OUI\",I26<109528),\"EXONERE\",IF(0>=H36-H37,0,H36-H37))","v":0}]
[]
[]
["TOTAL A REGLER",null,null,null,null,null,"F",{"$f":"IF(H38<=0,\"0   €\",H38)","v":"0   €"}]

{"sheet":"TABLEAU DE REPARTITION","index":2,"n_rows":32,"n_cols":24,"rows_kept":32,"cut":false,"hidden":false,"merged":[[28,0,28,7],[29,0,29,7],[30,0,30,7],[27,0,27,8],[0,0,0,8],[1,0,1,8],[2,0,2,7],[4,2,4,7]]}
["REPARTITION ET CHOIX DES ECOLES"]
[]
["RAPPEL DU MONTANT TOTAL A REGLER AU TITRE DES 13%",null,null,null,null,null,null,null,{"$f":"ROUND((CALCUL!H41),2)","v":0}]
[]
[null,null,"Montant maximum a attribuer aux écoles habilitées par arrêté",null,null,null,null,null,{"$f":"I3*30%","v":0}]
[]
["UAI ECOLE","ECOLE","ADRESSE","CP","VILLE","HABILITATION","MODE DE REGLEMENT","REPARTITION % ","MONTANT A VERSER"]
[null,"UNEA","153 Avenue Jean LOLIVE",93500,"PANTIN","PREFECTURE","CHEQUE",null,{"$f":"$I$3*$H8","v":0},null,null,null,null,null,null,null,null,null,{"$f":"IF(F8=\"PREFECTURE\",(I8),(0))","v":0},{"$f":"IF(F8=\"ARRETE\",(I8),(0))","v":0},{"$f":"COUNTIF(A:A,A8)","v":0},{"$f":"COUNTIF(B:B,B8)","v":1},{"$f":"IF(V8>1,V8,0)","v":0},{"$f":"IF(U8>1,U8,0)","v":0}]
[null,null,null,null,null,null,null,0,{"$f":"$I$3*$H9","v":0},null,null,null,null,null,null,null,null,null,0,0,0,0,{"$f":"IF(V9>1,V9,0)","v":0},{"$f":"IF(U9>1,U9,0)","v":0}]
[null,null,null,null,null,null,null,0,0,null,null,null,null,null,null,null,null,null,0,0,0,0,0,0]
[null,null,null,null,null,null,null,0,0,null,null,null,null,null,null,null,null,null,0,0,0,0,0,0]
[null,null,null,null,null,null,null,0,0,null,null,null,null,null,null,null,null,null,0,0,0,0,0,0]
[null,null,null,null,null,null,null,0,0,null,null,null,null,null,null,null,null,null,0,0,0,0,0,0]
[null,null,null,null,null,null,null,0,0,null,null,null,null,null,null,null,null,null,0,0,0,0,0,0]
[null,null,null,null,null,null,null,0,0,null,null,null,null,null,null,null,null,null,0,0,0,0,0,0]
[null,null,null,null,null,null,null,0,0,null,null,null,null,null,null,null,null,null,0,0,0,0,0,0]
[null,null,null,null,null,null,null,0,0,null,null,null,null,null,null,null,null,null,0,0,0,0,0,0]
[null,null,null,null,null,null,null,0,0,null,null,null,null,null,null,null,null,null,0,0,0,0,0,0]
[null,null,null,null,null,null,null,0,0,null,null,null,null,null,null,null,null,null,0,0,0,0,0,0]
[null,null,null,null,null,null,null,0,0,null,null,null,null,null,null,null,null,null,0,0,0,0,0,0]
[null,null,null,null,null,null,null,0,0,null,null,null,null,null,null,null,null,null,0,0,0,0,0,0]
[null,null,null,null,null,null,null,0,0,null,null,null,null,null,null,null,null,null,0,0,0,0,0,0]
[null,null,null,null,null,null,null,0,0,null,null,null,null,null,null,null,null,null,0,0,0,0,0,0]
[null,null,null,null,null,null,null,0,0,null,null,null,null,null,null,null,null,null,0,0,0,0,0,0]
[null,null,null,null,null,null,null,0,0,null,null,null,null,null,null,null,null,null,0,0,0,0,0,0]
[null,null,null,null,null,null,null,0,0,null,null,null,null,null,null,null,null,null,0,0,0,0,0,0]
[null,null,null,null,null,null,null,0,0,null,null,null,null,null,null,null,null,null,0,0,0,0,0,0]
[]
["TOTAL ECOLE PREFECTURE",null,null,null,null,null,null,null,{"$f":"S31","v":0},null,null,null,null,null,null,null,null,null,null,null,null,null,{"$f":"SUM(W8:W27)","v":0},{"$f":"SUM(X8:X27)","v":0}]
["TOTAL ECOLES ARRÊTE",null,null,null,null,null,null,null,{"$f":"T31","v":0},null,null,null,null,null,null,null,null,null,null,null,null,null,null,{"$f":"SUM(W29:X29)","v":0}]
["TOTAL GENERAL",null,null,null,null,null,null,null,{"$f":"SUM(I8:I27)","v":0},null,null,null,null,null,null,null,null,null,{"$f":"SUM(S8:S27)","v":0},{"$f":"SUM(T8:T27)","v":0}]
[null,null,null,null,null,null,null,null,null,null,null,null,null,null,null,null,null,null,{"$f":"SUM(S31:T31)","v":0}]

{"sheet":"Modèle","index":3,"n_rows":46,"n_cols":8,"rows_kept":46,"cut":false,"hidden":false,"merged":[[21,3,21,7],[23,3,23,4],[13,0,13,7],[15,1,15,2],[15,3,15,7],[17,1,17,7],[19,1,19,7],[23,5,24,7],[26,0,26,2],[26,3,26,7],[28,1,28,2],[28,4,28,7],[32,0,32,7],[30,0,31,7],[8,0,9,7],[0,0,7,2],[11,0,11,7],[12,0,12,7],[7,4,7,5],[2,3,2,7],[3,3,3,7],[4,3,4,5],[4,6,4,7],[5,3,6,7],[10,0,10,7],[45,0,45,7],[34,1,34,7],[36,1,36,7],[35,0,35,7],[39,0,39,7],[40,0,41,7]]}
[]
[]
[]
[]
[]
[]
[]
[null,null,null,"A",{"$f":"CALCUL!D15","v":0},null,"le",{"$f":"TODAY()","v":"2021-02-25"}]
[]
[]
["Nous vous prions de trouver ci-dessous les informations relatives au versement de la fraction 13% de la taxe d'apprentissage au bénéfice de votre établissement."]
["Nous vous remercions de nous établir dés reception un recu correspondant à notre versement conformément à la législation."]
[]
["Informations sur l'entreprise (à indiquer sur le recu)"]
[]
["SIRET SIEGE",{"$f":"CALCUL!B9","v":0}]
[]
["RAISON SOCIALE",{"$f":"CALCUL!B11","v":" "}]
[]
["ADRESSE",{"$f":"CALCUL!B13","v":0}]
[]
["CODE POSTAL",{"$f":"CALCUL!B15","v":0},"VILLE ",{"$f":"CALCUL!D15","v":0}]
[]
["CODE NACE",{"$f":"CALCUL!B17","v":0},"IDCC N°",{"$f":"CALCUL!D17","v":0}]
[]
[]
["Personne à contacter",null,null,{"$f":"CALCUL!D20","v":0}]
[]
["TEL",{"$f":"CALCUL!B22","v":0},null,"EMAIL @",{"$f":"CALCUL!E22","v":0}]
[]
[]
[]
["Informations sur le réglement"]
[]
["Modalités de règlement : "]
[]
["Montant versé : "]
[]
[]
["Nous restons à votre entière disposition pour tout renseignement complémentaire. "]
["Nous esperons que ce versement vous aidera à poursuivre votre tache éducative dans les mielleures conditions, nous vous prions d'agréer, Madame , Monsieur, l'expression de nos salutations ditinguées."]
[]
[]
[]
[]
["                                                                                                      Le Service Comptable"]